bitfinex/quotes_BTCUSD_20230107
["timestamp","ask_amount","ask_price","bid_price","bid_amount"]
[1673122543916,3.55544986,16961.0,16960.0,0.02099368]
[1673122544724,2.94776486,16961.0,16960.0,0.02099368]
[1673122544970,3.55544986,16961.0,16960.0,0.02099368]
[1673122545233,2.94776486,16961.0,16960.0,0.02099368]
[1673122545460,3.55544986,16961.0,16960.0,0.02099368]
[1673122545957,4.15296599,16961.0,16960.0,0.02099368]
[1673122546404,3.54528099,16961.0,16960.0,0.02099368]
[1673122546629,4.15296599,16961.0,16960.0,0.02099368]
[1673122546891,3.54528099,16961.0,16960.0,0.02099368]
[1673122547153,4.15296599,16961.0,16960.0,0.02099368]
[1673122547665,3.54528099,16961.0,16960.0,0.02099368]
[1673122547883,4.15296599,16961.0,16960.0,0.02099368]
[1673122549139,3.54528099,16961.0,16960.0,0.02099368]
[1673122549368,4.15296599,16961.0,16960.0,0.02099368]
[1673122550594,3.57937999,16961.0,16960.0,0.02099368]
[1673122550866,4.15296599,16961.0,16960.0,0.02099368]
[1673122551931,3.54528099,16961.0,16960.0,0.02099368]
[1673122552198,4.15296599,16961.0,16960.0,0.02099368]
[1673122552453,3.54528099,16961.0,16960.0,0.02099368]
[1673122552719,4.15296599,16961.0,16960.0,0.02099368]
[1673122554255,3.54528099,16961.0,16960.0,0.02099368]
[1673122554481,4.15296599,16961.0,16960.0,0.02099368]
[1673122554745,3.54528099,16961.0,16960.0,0.02099368]
[1673122554996,4.15296599,16961.0,16960.0,0.02099368]
[1673122555743,3.54528099,16961.0,16960.0,0.02099368]
[1673122555989,4.15296599,16961.0,16960.0,0.02099368]
[1673122557564,3.54528099,16961.0,16960.0,0.02099368]
[1673122557819,4.15296599,16961.0,16960.0,0.02099368]
[1673122558556,3.54528099,16961.0,16960.0,0.02099368]
[1673122558806,4.15296599,16961.0,16960.0,0.02099368]
[1673122559048,3.50986744,16961.0,16960.0,0.02099368]
[1673122559270,4.15296599,16961.0,16960.0,0.02089848]
[1673122560521,3.54528099,16961.0,16960.0,0.02089848]
[1673122560770,4.15296599,16961.0,16960.0,0.02089848]
[1673122562634,3.55544986,16961.0,16960.0,0.02089848]
[1673122563874,2.94776486,16961.0,16960.0,0.02089848]
[1673122564383,3.55544986,16961.0,16960.0,0.02089848]
[1673122565128,3.68524365,16961.0,16960.0,0.02089848]
[1673122567101,3.53044986,16961.0,16960.0,0.02089848]
[1673122569623,3.53894986,16961.0,16960.0,0.02089848]
[1673122574370,3.83894986,16961.0,16960.0,0.02089848]
[1673122576374,3.23126486,16961.0,16960.0,0.02089848]
[1673122576623,3.83894986,16961.0,16960.0,0.02089848]
[1673122580850,3.23126486,16961.0,16960.0,0.02089848]
[1673122586155,3.21138558,16961.0,16960.0,0.02089848]
[1673122606199,3.21138558,16961.0,16960.0,0.02078972]
[1673122610653,3.59889785,16961.0,16960.0,0.02078972]
[1673122610880,4.20658285,16961.0,16960.0,0.02078972]
[1673122611126,3.81907058,16961.0,16960.0,0.02078972]
[1673122612451,3.21138558,16961.0,16960.0,0.02078972]
[1673122613988,3.81907058,16961.0,16960.0,0.02078972]
[1673122614232,3.21138558,16961.0,16960.0,0.02078972]
[1673122614520,3.81907058,16961.0,16960.0,0.02078972]
[1673122614741,3.21138558,16961.0,16960.0,0.02078972]
[1673122614983,3.81907058,16961.0,16960.0,0.02078972]
[1673122615242,3.21138558,16961.0,16960.0,0.02078972]
[1673122615495,3.81907058,16961.0,16960.0,0.02078972]
[1673122622985,3.57168482,16961.0,16960.0,0.02078972]
[1673122623244,4.14107398,16961.0,16960.0,0.02078972]
[1673122626062,4.04968171,16961.0,16960.0,0.02078972]
[1673122627854,4.04968171,16961.0,16960.0,0.02071403]
[1673122632569,4.04968171,16961.0,16960.0,0.02031403]
[1673122648914,4.01426816,16961.0,16960.0,0.02031403]
[1673122649171,4.04958171,16961.0,16960.0,0.02031403]
[1673122652315,4.53795277,16961.0,16960.0,0.02031403]
[1673122654684,4.04958171,16961.0,16960.0,0.02031403]
[1673122662481,4.92109434,16961.0,16960.0,0.02031403]
[1673122666534,4.35170518,16961.0,16960.0,0.02031403]
[1673122666788,4.64651518,16961.0,16960.0,0.02031403]
[1673122667039,5.17151518,16961.0,16960.0,0.02031403]
[1673122667314,5.17145277,16961.0,16960.0,0.02031403]
[1673122667529,5.7653299,16961.0,16960.0,0.02031403]
[1673122668306,5.7653199,16961.0,16960.0,0.02031403]
[1673122671084,5.7653199,16961.0,16960.0,0.02020791]
[1673122675163,5.4705199,16961.0,16960.0,0.02020791]
[1673122680247,5.7653199,16961.0,16960.0,0.02020791]
[1673122686874,5.4705199,16961.0,16960.0,0.02020791]
[1673122691581,5.4705199,16961.0,16960.0,0.02014685]
[1673122701258,4.59906968,16961.0,16960.0,0.02014685]
[1673122716326,4.59906968,16961.0,16960.0,0.02003375]
[1673122719377,4.59906968,16961.0,16960.0,0.01003375]
[1673122732213,4.00519255,16961.0,16960.0,0.01003375]
[1673122736653,4.29999255,16961.0,16960.0,0.01003375]
[1673122738461,4.264579,16961.0,16960.0,0.01003375]
[1673122738710,4.29999255,16961.0,16960.0,0.01003375]
[1673122739722,4.29999255,16961.0,16960.0,0.00992309]
[1673122741413,4.89386968,16961.0,16960.0,0.00992309]
[1673122742133,4.29999255,16961.0,16960.0,0.00992309]
[1673122745541,4.30000255,16961.0,16960.0,0.00992309]
[1673122761562,4.29000255,16961.0,16960.0,0.00992309]
[1673122781628,4.254589,16961.0,16960.0,0.00992309]
[1673122785335,4.254589,16961.0,16960.0,0.00984559]
[1673122786119,4.254579,16961.0,16960.0,0.00984559]
[1673122806008,4.254579,16961.0,16960.0,0.00973488]
[1673122807096,4.254589,16961.0,16960.0,0.00973488]
[1673122808061,3.977709,16961.0,16960.0,0.00973488]
[1673122809598,3.959779,16961.0,16960.0,0.00973488]
[1673122810104,4.254589,16961.0,16960.0,0.00973488]
[1673122810370,4.84846613,16961.0,16960.0,0.00973488]
[1673122811141,4.84845613,16961.0,16960.0,0.00973488]
[1673122817374,4.84846613,16961.0,16960.0,0.00973488]
[1673122817909,4.88387968,16961.0,16960.0,0.00973488]
[1673122824203,4.58906968,16961.0,16960.0,0.00973488]
[1673122824420,4.88387968,16961.0,16960.0,0.00973488]
[1673122828097,4.88387968,16961.0,16960.0,0.00965248]
[1673122840455,4.88386968,16961.0,16960.0,0.00965248]
[1673122843781,4.28999255,16961.0,16960.0,0.00965248]
[1673122844204,3.68230755,16961.0,16960.0,0.00965248]
[1673122845714,4.28999255,16961.0,16960.0,0.00965248]
[1673122848197,4.58488502,16961.0,16960.0,0.00965248]
[1673122848740,5.45645826,16961.0,16960.0,0.00965248]
[1673122849248,4.86676579,16961.0,16960.0,0.00965248]
[1673122850747,5.54500709,16961.0,16960.0,0.00965248]
[1673122851501,4.86676579,16961.0,16960.0,0.00955138]
[1673122872251,4.86676579,16961.0,16960.0,0.00943178]
[1673122877333,5.16155579,16961.0,16960.0,0.00943178]
[1673122878765,5.2732548,16961.0,16960.0,0.00943178]
[1673122879491,4.40168156,16961.0,16960.0,0.00943178]
[1673122879784,3.68229755,16961.0,16960.0,0.00943178]
[1673122880035,4.28998255,16961.0,16960.0,0.00943178]
[1673122880804,5.16133454,16961.0,16960.0,0.00943178]
[1673122881320,4.28998255,16961.0,16960.0,0.00943178]
[1673122881847,5.16140405,16961.0,16960.0,0.00943178]
[1673122886781,4.28998255,16961.0,16960.0,0.00943178]
[1673122895880,4.28998255,16961.0,16960.0,0.00931323]
[1673122897865,4.28999255,16961.0,16960.0,0.00931323]
[1673122901298,3.99519255,16961.0,16960.0,0.00931323]
[1673122901569,4.28999255,16961.0,16960.0,0.00931323]
[1673122902320,4.88386968,16961.0,16960.0,0.00931323]
[1673122903838,4.58906968,16961.0,16960.0,0.00931323]
[1673122906430,4.88386968,16961.0,16960.0,0.00931323]
[1673122914288,4.58906968,16961.0,16960.0,0.00931323]
[1673122914552,4.28999255,16961.0,16960.0,0.00931323]
[1673122914816,4.89073737,16961.0,16960.0,0.00931323]
[1673122915068,4.28999255,16961.0,16960.0,0.00931323]
[1673122915631,3.68230755,16961.0,16960.0,0.00931323]
[1673122916157,4.28999255,16961.0,16960.0,0.00931323]
[1673122917220,3.99519255,16961.0,16960.0,0.00931323]
[1673122918824,3.99519255,16961.0,16960.0,0.00921934]
[1673122919078,4.254579,16961.0,16960.0,0.00921934]
[1673122919332,4.28999255,16961.0,16960.0,0.00921934]
[1673122922391,4.86776842,16961.0,16960.0,0.00921934]
[1673122922890,4.28999255,16961.0,16960.0,0.00921934]
[1673122925042,4.88386968,16961.0,16960.0,0.00921934]
[1673122926358,4.28999255,16961.0,16960.0,0.00921934]
[1673122933832,3.68230755,16961.0,16960.0,0.00921934]
[1673122934635,4.28999255,16961.0,16960.0,0.00921934]
[1673122935158,4.28910065,16961.0,16960.0,0.00921934]
[1673122935418,3.68141565,16961.0,16960.0,0.00921934]
[1673122936633,4.28910065,16961.0,16960.0,0.00921934]
[1673122937950,3.38661565,16961.0,16960.0,0.00921934]
[1673122938180,3.99430065,16961.0,16960.0,0.00921934]
[1673122947861,3.42071465,16961.0,16960.0,0.00921934]
[1673122949874,4.02585476,16961.0,16960.0,0.00921934]
[1673122951430,4.32065476,16961.0,16960.0,0.00921934]
[1673122951619,3.71551465,16961.0,16960.0,0.00921934]
[1673122953433,4.25452792,16961.0,16960.0,0.00921934]
[1673122954881,3.71551465,16961.0,16960.0,0.00921934]
[1673122956840,3.71551465,16961.0,16960.0,0.00912194]
[1673122964212,3.42071465,16961.0,16960.0,0.00912194]
[1673122964441,3.71551465,16961.0,16960.0,0.00912194]
[1673122969946,4.31434029,16961.0,16960.0,0.00912194]
[1673122970445,3.71551465,16961.0,16960.0,0.00912194]
[1673122972504,4.25452792,16961.0,16960.0,0.00912194]
[1673122973958,3.64684292,16961.0,16960.0,0.00912194]
[1673122974176,4.25452792,16961.0,16960.0,0.00912194]
[1673122975359,4.24565274,16961.0,16960.0,0.00912194]
[1673122975869,4.85333774,16961.0,16960.0,0.00912194]
[1673122976115,4.24565274,16961.0,16960.0,0.00912194]
[1673122976374,4.85333774,16961.0,16960.0,0.00912194]
[1673122977811,4.24565274,16961.0,16960.0,0.00912194]
[1673122978560,4.85333774,16961.0,16960.0,0.00912194]
[1673122979052,4.85333774,16961.0,16960.0,0.00905021]
[1673122979289,3.71551465,16961.0,16960.0,0.00905021]
[1673122980331,4.37134925,16961.0,16960.0,0.00905021]
[1673122980553,3.76366425,16961.0,16960.0,0.00905021]
[1673122980837,4.37134925,16961.0,16960.0,0.00905021]
[1673122981122,3.76366425,16961.0,16960.0,0.00905021]
[1673122981628,2.81302965,16961.0,16960.0,0.00905021]
[1673122982105,3.42071465,16961.0,16960.0,0.00905021]
[1673122983582,4.05993062,16961.0,16960.0,0.00905021]
[1673122983837,4.04612275,16961.0,16960.0,0.00905021]
[1673122984123,4.65380775,16961.0,16960.0,0.00905021]
[1673122984394,4.01459178,16961.0,16960.0,0.00905021]
[1673122984648,4.63307615,16961.0,16960.0,0.00905021]
[1673122985622,4.01459178,16961.0,16960.0,0.00905021]
[1673122987134,4.04171097,16961.0,16960.0,0.00905021]
[1673122987406,4.64939597,16961.0,16960.0,0.00905021]
[1673122987976,4.01459178,16961.0,16960.0,0.00905021]
[1673122988197,4.60986658,16961.0,16960.0,0.00905021]
[1673122988939,4.01459178,16961.0,16960.0,0.00905021]
[1673122989190,4.63210219,16961.0,16960.0,0.00905021]
[1673122989438,4.02441719,16961.0,16960.0,0.00905021]
[1673122989687,4.31921719,16961.0,16960.0,0.00905021]
[1673122989923,4.92690219,16961.0,16960.0,0.00905021]
[1673122991426,4.31921719,16961.0,16960.0,0.00905021]
[1673122991696,4.92690219,16961.0,16960.0,0.00905021]
[1673122992771,4.31921719,16961.0,16960.0,0.00905021]
[1673122993699,3.72534006,16961.0,16960.0,0.00905021]
[1673122995416,4.33302506,16961.0,16960.0,0.00905021]
[1673122996321,3.72534006,16961.0,16960.0,0.00905021]
[1673122996549,3.10782965,16961.0,16960.0,0.00905021]
[1673122997551,3.71551465,16961.0,16960.0,0.00905021]
[1673122997765,4.25452792,16961.0,16960.0,0.00905021]
[1673122997990,4.45033286,16961.0,16960.0,0.00905021]
[1673122998217,4.74513286,16961.0,16960.0,0.00905021]
[1673122999699,4.20611959,16961.0,16960.0,0.00905021]
[1673122999957,3.30363459,16961.0,16960.0,0.00905021]
[1673123000452,4.17521477,16961.0,16960.0,0.00905021]
[1673123000669,3.30363459,16961.0,16960.0,0.00905021]
[1673123000925,3.91131959,16961.0,16960.0,0.00897102]
[1673123001675,3.30363459,16961.0,16960.0,0.00897102]
[1673123002151,3.91131959,16961.0,16960.0,0.00897102]
[1673123002405,4.7828484,16961.0,16960.0,0.00897102]
[1673123002654,3.86222836,16961.0,16960.0,0.00897102]
[1673123002905,4.46991336,16961.0,16960.0,0.00897102]
[1673123003673,3.91131959,16961.0,16960.0,0.00897102]
[1673123003925,3.30363459,16961.0,16960.0,0.00897102]
[1673123005191,4.17514443,16961.0,16960.0,0.00897102]
[1673123005943,4.78282943,16961.0,16960.0,0.00897102]
[1673123006458,4.17514443,16961.0,16960.0,0.00897102]
[1673123006961,4.40394144,16961.0,16960.0,0.00897102]
[1673123007468,5.01162644,16961.0,16960.0,0.00897102]
[1673123007729,4.1401166,16961.0,16960.0,0.00897102]
[1673123007937,5.01160122,16961.0,16960.0,0.00897102]
[1673123008408,4.1401166,16961.0,16960.0,0.00897102]
[1673123008659,4.4039234,16961.0,16960.0,0.00897102]
[1673123008906,4.36850985,16961.0,16960.0,0.00897102]
[1673123009170,4.4039234,16961.0,16960.0,0.00897102]
[1673123009925,4.17512639,16961.0,16960.0,0.00897102]
[1673123013522,3.65012639,16961.0,16960.0,0.00897102]
[1673123014035,4.25781139,16961.0,16960.0,0.00897102]
[1673123021673,3.65012639,16961.0,16960.0,0.00897102]
[1673123022192,4.25781139,16961.0,16960.0,0.00897102]
[1673123022701,4.25781139,16961.0,16960.0,0.00886353]
[1673123026418,3.65012639,16961.0,16960.0,0.00886353]
[1673123028085,4.25781139,16961.0,16960.0,0.00886353]
[1673123030719,3.65012639,16961.0,16960.0,0.00886353]
[1673123032773,4.25781139,16961.0,16960.0,0.00886353]
[1673123034592,3.65012639,16961.0,16960.0,0.00886353]
[1673123037003,3.94491639,16961.0,16960.0,0.00886353]
[1673123038290,4.55260139,16961.0,16960.0,0.00886353]
[1673123039005,3.94491639,16961.0,16960.0,0.00886353]
[1673123039935,3.65012639,16961.0,16960.0,0.00886353]
[1673123041876,4.83139739,16961.0,16960.0,0.00886353]
[1673123042852,5.04821017,16961.0,16960.0,0.00886353]
[1673123043619,4.44052517,16961.0,16960.0,0.00886353]
[1673123044342,4.73532517,16961.0,16960.0,0.00886353]
[1673123044602,4.55760523,16961.0,16960.0,0.00886353]
[1673123046130,4.85241523,16961.0,16960.0,0.00886353]
[1673123046891,4.24473023,16961.0,16960.0,0.00886353]
[1673123047147,4.85241523,16961.0,16960.0,0.00877167]
[1673123047661,4.63560245,16961.0,16960.0,0.00877167]
[1673123048937,4.02791745,16961.0,16960.0,0.00877167]
[1673123049810,4.63560245,16961.0,16960.0,0.00877167]
[1673123050036,4.63559245,16961.0,16960.0,0.00877167]
[1673123052681,5.31598452,16961.0,16960.0,0.00877167]
[1673123052930,4.34079245,16961.0,16960.0,0.00877167]
[1673123053395,4.83461368,16961.0,16960.0,0.00877167]
[1673123053997,4.93466958,16961.0,16960.0,0.00877167]
[1673123054249,4.90981909,16961.0,16960.0,0.00877167]
[1673123054504,4.30213409,16961.0,16960.0,0.00877167]
[1673123055460,4.90981909,16961.0,16960.0,0.00877167]
[1673123055913,4.34079245,16961.0,16960.0,0.00877167]
[1673123056185,4.29588367,16961.0,16960.0,0.00877167]
[1673123056465,4.90356867,16961.0,16960.0,0.00877167]
[1673123059773,5.19836867,16961.0,16960.0,0.00877167]
[1673123060279,4.59068367,16961.0,16960.0,0.00877167]
[1673123060515,5.19836867,16961.0,16960.0,0.00877167]
[1673123064395,4.59068367,16961.0,16960.0,0.00877167]
[1673123066351,4.02790745,16961.0,16960.0,0.00877167]
[1673123067349,4.6384794,16961.0,16960.0,0.00877167]
[1673123067593,5.2461644,16961.0,16960.0,0.00877167]
[1673123068430,4.6384794,16961.0,16960.0,0.00877167]
[1673123069230,5.2461644,16961.0,16960.0,0.00877167]
[1673123071311,5.2461744,16961.0,16960.0,0.00877167]
[1673123071831,4.6384794,16961.0,16960.0,0.00869022]
[1673123072304,5.21414912,16961.0,16960.0,0.00869022]
[1673123073049,4.63559245,16961.0,16960.0,0.00869022]
[1673123073290,5.16838186,16961.0,16960.0,0.00869022]
[1673123079199,5.76225899,16961.0,16960.0,0.00869022]
[1673123079454,5.16838186,16961.0,16960.0,0.00869022]
[1673123084310,4.87358186,16961.0,16960.0,0.00869022]
[1673123084532,5.16838186,16961.0,16960.0,0.00869022]
[1673123086227,4.87358186,16961.0,16960.0,0.00869022]
[1673123087328,4.26589686,16961.0,16960.0,0.00869022]
[1673123087578,4.87358186,16961.0,16960.0,0.00869022]
[1673123089571,4.26589686,16961.0,16960.0,0.00869022]
[1673123090092,4.56069686,16961.0,16960.0,0.00869022]
[1673123093418,4.56069686,16961.0,16960.0,0.00861252]
[1673123093636,5.16838186,16961.0,16960.0,0.00861252]
[1673123094302,4.56069686,16961.0,16960.0,0.00861252]
[1673123095300,5.16838186,16961.0,16960.0,0.00861252]
[1673123097122,4.56069686,16961.0,16960.0,0.00861252]
[1673123097852,4.5605879,16961.0,16960.0,0.00861252]
[1673123098891,5.1682729,16961.0,16960.0,0.00861252]
[1673123099394,5.13285935,16961.0,16960.0,0.00861252]
[1673123099615,5.1682729,16961.0,16960.0,0.00861252]
[1673123100365,4.5605879,16961.0,16960.0,0.00861252]
[1673123101132,5.1682729,16961.0,16960.0,0.00861252]
[1673123101862,4.5605879,16961.0,16960.0,0.00861252]
[1673123102380,5.1682729,16961.0,16960.0,0.00861252]
[1673123102893,4.5605879,16961.0,16960.0,0.00861252]
[1673123106425,5.1682729,16961.0,16960.0,0.00861252]
[1673123108437,5.1682829,16961.0,16960.0,0.00861252]
[1673123109012,4.5605979,16961.0,16960.0,0.00861252]
[1673123109523,3.73299849,16961.0,16960.0,0.00861252]
[1673123109776,4.34068349,16961.0,16960.0,0.00861252]
[1673123110061,3.73299849,16961.0,16960.0,0.00861252]
[1673123110559,4.35644492,16961.0,16960.0,0.00861252]
[1673123111382,4.96412992,16961.0,16960.0,0.00861252]
[1673123111599,5.10112992,16961.0,16960.0,0.01261252]
[1673123111818,4.49344492,16961.0,16960.0,0.01261252]
[1673123112044,4.63044492,16961.0,16960.0,0.01661252]
[1673123112288,4.92524492,16961.0,16960.0,0.01661252]
[1673123112542,3.74607092,16961.0,16960.0,0.01661252]
[1673123112833,4.92524492,16961.0,16960.0,0.01661252]
[1673123113085,5.53292992,16961.0,16960.0,0.01661252]
[1673123113566,4.92524492,16961.0,16960.0,0.01661252]
[1673123114542,4.63044492,16961.0,16960.0,0.01661252]
[1673123118928,5.23812992,16961.0,16960.0,0.01661252]
[1673123119181,4.63044492,16961.0,16960.0,0.01661252]
[1673123119625,5.23812992,16961.0,16960.0,0.01661252]
[1673123121559,5.23812992,16961.0,16960.0,0.01650094]
[1673123123326,4.63044492,16961.0,16960.0,0.01650094]
[1673123124337,5.23812992,16961.0,16960.0,0.01650094]
[1673123125968,4.63044492,16961.0,16960.0,0.01650094]
[1673123126399,5.23812992,16961.0,16960.0,0.01650094]
[1673123127142,4.63044492,16961.0,16960.0,0.01650094]
[1673123130721,4.62420031,16961.0,16960.0,0.01650094]
[1673123131183,3.75270851,16961.0,16960.0,0.01650094]
[1673123131415,4.62420031,16961.0,16960.0,0.01650094]
[1673123131638,3.75270851,16961.0,16960.0,0.01650094]
[1673123131862,4.35020031,16961.0,16960.0,0.00850094]
[1673123132134,5.25268531,16961.0,16960.0,0.00850094]
[1673123132660,4.64500031,16961.0,16960.0,0.00850094]
[1673123133889,5.25268531,16961.0,16960.0,0.00850094]
[1673123134147,4.64500031,16961.0,16960.0,0.00850094]
[1673123135157,5.25268531,16961.0,16960.0,0.00850094]
[1673123135622,4.64500031,16961.0,16960.0,0.00850094]
[1673123136358,5.25268531,16961.0,16960.0,0.00850094]
[1673123137081,4.64500031,16961.0,16960.0,0.00850094]
[1673123137611,5.25268531,16961.0,16960.0,0.00850094]
[1673123137862,4.64500031,16961.0,16960.0,0.00850094]
[1673123138606,3.47878982,16961.0,16960.0,0.00850094]
[1673123139089,4.48728162,16961.0,16960.0,0.01250094]
[1673123139307,4.95796662,16961.0,16960.0,0.00850094]
[1673123139576,5.09496662,16961.0,16960.0,0.01250094]
[1673123140338,4.48728162,16961.0,16960.0,0.01250094]
[1673123141371,5.09496662,16961.0,16960.0,0.01250094]
[1673123143884,4.48728162,16961.0,16960.0,0.01250094]
[1673123146043,5.09496662,16961.0,16960.0,0.01250094]
[1673123146296,5.09496662,16961.0,16960.0,0.01239778]
[1673123147093,4.48728162,16961.0,16960.0,0.01239778]
[1673123148384,3.61578982,16961.0,16960.0,0.01239778]
[1673123148626,4.48728162,16961.0,16960.0,0.01239778]
[1673123149640,5.09496662,16961.0,16960.0,0.01239778]
[1673123149877,3.61578982,16961.0,16960.0,0.01239778]
[1673123159721,3.91057982,16961.0,16960.0,0.01239778]
[1673123160512,3.61578982,16961.0,16960.0,0.01239778]
[1673123163514,3.61572125,16961.0,16960.0,0.01239778]
[1673123182509,4.22340625,16961.0,16960.0,0.01239778]
[1673123183496,3.61572125,16961.0,16960.0,0.01239778]
[1673123185218,3.91052125,16961.0,16960.0,0.01239778]
[1673123185719,3.91052125,16961.0,16960.0,0.01232227]
[1673123187078,4.51820625,16961.0,16960.0,0.01232227]
[1673123187825,3.91052125,16961.0,16960.0,0.01232227]
[1673123188332,3.91052125,16961.0,16960.0,0.50274027]
[1673123188574,3.61572125,16961.0,16960.0,0.50274027]
[1673123188816,3.5803077,16961.0,16960.0,0.01232227]
[1673123189079,3.61572125,16961.0,16960.0,0.01232227]
[1673123191361,4.48721305,16961.0,16960.0,0.01232227]
[1673123191835,3.61572125,16961.0,16960.0,0.01232227]
[1673123192175,4.48721305,16961.0,16960.0,0.01232227]
[1673123192394,3.61572125,16961.0,16960.0,0.01232227]
[1673123203272,3.91052125,16961.0,16960.0,0.01232227]
[1673123203739,3.61572125,16961.0,16960.0,0.01232227]
[1673123210299,3.91052125,16961.0,16960.0,0.01220765]
[1673123211730,3.61572125,16961.0,16960.0,0.01220765]
[1673123212468,4.22340625,16961.0,16960.0,0.01220765]
[1673123214770,3.61572125,16961.0,16960.0,0.01220765]
[1673123215520,4.22340625,16961.0,16960.0,0.01220765]
[1673123218941,3.61572125,16961.0,16960.0,0.01220765]
[1673123219729,4.22340625,16961.0,16960.0,0.01220765]
[1673123221107,3.61572125,16961.0,16960.0,0.01220765]
[1673123224955,4.22340625,16961.0,16960.0,0.01220765]
[1673123225395,4.22330939,16961.0,16960.0,0.01220765]
[1673123225649,3.61562439,16961.0,16960.0,0.01220765]
[1673123227623,3.91042439,16961.0,16960.0,0.01220765]
[1673123236829,3.91043439,16961.0,16960.0,0.01220765]
[1673123238336,3.61562439,16961.0,16960.0,0.01220765]
[1673123244655,3.53001569,16961.0,16960.0,0.01220765]
[1673123247655,3.53001569,16961.0,16960.0,0.01210074]
[1673123248188,4.13770069,16961.0,16960.0,0.01210074]
[1673123248445,3.53001569,16961.0,16960.0,0.01210074]
[1673123249718,4.48275588,16961.0,16960.0,0.01210074]
[1673123249972,5.09044088,16961.0,16960.0,0.01210074]
[1673123251787,4.77756588,16961.0,16960.0,0.01210074]
[1673123252036,5.38525088,16961.0,16960.0,0.01210074]
[1673123253808,4.77756588,16961.0,16960.0,0.01210074]
[1673123254070,4.55194072,16961.0,16960.0,0.01210074]
[1673123254325,4.48275588,16961.0,16960.0,0.01210074]
[1673123254572,3.61126408,16961.0,16960.0,0.01210074]
[1673123256608,4.21894908,16961.0,16960.0,0.01210074]
[1673123257395,3.61126408,16961.0,16960.0,0.01210074]
[1673123258629,4.21894908,16961.0,16960.0,0.01210074]
[1673123259141,3.61126408,16961.0,16960.0,0.01210074]
[1673123260175,4.21894908,16961.0,16960.0,0.01210074]
[1673123260504,3.61126408,16961.0,16960.0,0.01210074]
[1673123261972,3.90606408,16961.0,16960.0,0.01210074]
[1673123262234,3.61126408,16961.0,16960.0,0.01210074]
[1673123262490,4.51374908,16961.0,16960.0,0.01210074]
[1673123263496,3.90606408,16961.0,16960.0,0.01210074]
[1673123266977,4.51374908,16961.0,16960.0,0.01210074]
[1673123267743,3.90606408,16961.0,16960.0,0.01210074]
[1673123268282,3.61126408,16961.0,16960.0,0.01210074]
[1673123268509,3.90606408,16961.0,16960.0,0.01202426]
[1673123269802,3.61126408,16961.0,16960.0,0.01202426]
[1673123270854,4.51374908,16961.0,16960.0,0.01202426]
[1673123271084,3.90606408,16961.0,16960.0,0.01202426]
[1673123271600,4.51374908,16961.0,16960.0,0.01202426]
[1673123271875,3.90606408,16961.0,16960.0,0.01202426]
[1673123274238,4.51374908,16961.0,16960.0,0.01202426]
[1673123274486,4.38001155,16961.0,16960.0,0.01202426]
[1673123274762,5.33492646,16961.0,16960.0,0.01202426]
[1673123275032,5.90218514,16961.0,16960.0,0.01202426]
[1673123275837,5.41683655,16961.0,16960.0,0.01202426]
[1673123276616,4.80915155,16961.0,16960.0,0.01202426]
[1673123276867,3.64285975,16961.0,16960.0,0.01202426]
[1673123277394,2.99201394,16961.0,16960.0,0.01202426]
[1673123277896,3.48684342,16961.0,16960.0,0.01202426]
[1673123278680,4.09452842,16961.0,16960.0,0.01202426]
[1673123278881,4.05911487,16961.0,16960.0,0.01202426]
[1673123279105,4.09452842,16961.0,16960.0,0.01202426]
[1673123279360,3.48684342,16961.0,16960.0,0.01202426]
[1673123280368,3.48684342,16961.0,16960.0,0.004]
[1673123282680,3.4868845,16961.0,16960.0,0.004]
[1673123285487,3.49151713,16961.0,16960.0,0.004]
[1673123285997,3.78631713,16961.0,16960.0,0.004]
[1673123287356,3.49151713,16961.0,16960.0,0.004]
[1673123288870,3.49151713,16961.0,16960.0,0.00392112]
[1673123290537,3.78631713,16961.0,16960.0,0.00392112]
[1673123298348,3.49151713,16961.0,16960.0,0.00392112]
[1673123299384,3.78631713,16961.0,16960.0,0.00392112]
[1673123300365,3.49151713,16961.0,16960.0,0.00392112]
[1673123306999,3.78631713,16961.0,16960.0,0.00392112]
[1673123308083,3.49151713,16961.0,16960.0,0.00392112]
[1673123308533,3.78631713,16961.0,16960.0,0.00392112]
[1673123309277,3.49151713,16961.0,16960.0,0.00392112]
[1673123313065,3.49151713,16961.0,16960.0,0.00381599]
[1673123315544,3.78630713,16961.0,16960.0,0.00381599]
[1673123316709,3.49151713,16961.0,16960.0,0.00381599]
[1673123318642,3.78631713,16961.0,16960.0,0.00381599]
[1673123318894,4.39400213,16961.0,16960.0,0.00381599]
[1673123319872,3.78631713,16961.0,16960.0,0.00381599]
[1673123321406,3.49151713,16961.0,16960.0,0.00381599]
[1673123321655,3.78631713,16961.0,16960.0,0.00381599]
[1673123323465,3.49151713,16961.0,16960.0,0.00381599]
[1673123323716,3.78633713,16961.0,16960.0,0.00381599]
[1673123327771,2.92421737,16961.0,16960.0,0.00381599]
[1673123328018,3.4915982,16961.0,16960.0,0.00381599]
[1673123330070,3.49152248,16961.0,16960.0,0.00381599]
[1673123336730,3.78631248,16961.0,16960.0,0.00381599]
[1673123337243,3.49152248,16961.0,16960.0,0.00381599]
[1673123346312,4.09920748,16961.0,16960.0,0.00381599]
[1673123346559,3.49152248,16961.0,16960.0,0.00381599]
[1673123346810,2.92414165,16961.0,16960.0,0.00381599]
[1673123347066,2.92414165,16961.0,16960.0,0.49423399]
[1673123347628,2.92414165,16961.0,16960.0,0.00381599]
[1673123348613,3.49192063,16961.0,16960.0,0.00381599]
[1673123349302,2.92414165,16961.0,16960.0,0.00381599]
[1673123349526,3.49186424,16961.0,16960.0,0.00381599]
[1673123349773,2.92414165,16961.0,16960.0,0.00381599]
[1673123350082,2.92414165,16961.0,16960.0,0.49423399]
[1673123351980,2.92414165,16961.0,16960.0,0.00381599]
[1673123352450,3.49200889,16961.0,16960.0,0.00381599]
[1673123353716,3.49200889,16961.0,16960.0,0.00374543]
[1673123357444,2.92414165,16961.0,16960.0,0.00374543]
[1673123357700,2.92414165,16961.0,16960.0,0.49416343]
[1673123359478,3.52142957,16961.0,16960.0,0.49416343]
[1673123359698,3.52142957,16961.0,16960.0,0.00374543]
[1673123362238,2.92414165,16961.0,16960.0,0.00374543]
[1673123362554,3.52141168,16961.0,16960.0,0.00374543]
[1673123362777,2.92414165,16961.0,16960.0,0.00374543]
[1673123363043,2.92414165,16961.0,16960.0,0.49416343]
[1673123363327,3.52141665,16961.0,16960.0,0.49416343]
[1673123363573,3.52141665,16961.0,16960.0,0.00374543]
[1673123368951,3.4860031,16961.0,16960.0,0.00374543]
[1673123369220,3.4860031,16961.0,16960.0,0.49416343]
[1673123369221,3.52141665,16961.0,16960.0,0.49416343]
[1673123370463,2.92414165,16961.0,16960.0,0.00374543]
[1673123370685,3.491944,16961.0,16960.0,0.00374543]
[1673123374237,2.92414165,16961.0,16960.0,0.00374543]
[1673123374510,2.92414165,16961.0,16960.0,0.49416343]
[1673123375542,3.52146832,16961.0,16960.0,0.49416343]
[1673123375762,2.92414165,16961.0,16960.0,0.49416343]
[1673123377286,3.52148577,16961.0,16960.0,0.49416343]
[1673123377825,3.52148577,16961.0,16960.0,0.00374543]
[1673123378055,4.0893954,16961.0,16960.0,0.00374543]
[1673123378331,3.49205128,16961.0,16960.0,0.00374543]